fUST/lending_fUST_20250624
["ID","MTS","AMOUNT","RATE_DAILY","PERIOD"]
[367296871,1750734646887,-204.003028,0.000198,2]
[367296873,1750734646896,-204.003028,0.000198,2]
[367296875,1750734646905,-1198.060485,0.000198,2]
[367296877,1750734646914,-1198.060485,0.000198,2]
[367296879,1750734646923,-151.0,0.000198,2]
[367296881,1750734646932,-543.938955,0.00019811,2]
[367296883,1750734646941,-543.938955,0.00019811,2]
[367296885,1750734646951,-1250.760171,0.00019853,2]
[367296887,1750734646964,-151.0,0.000199,2]
[367296889,1750734646973,-151.0,0.000199,2]
[367296891,1750734646982,-160.0,0.00019919,9]
[367296893,1750734646991,-306.0,0.00019946,2]
[367296895,1750734647001,-153.0,0.00019946,2]
[367296897,1750734647010,-153.0,0.00019946,2]
[367296899,1750734647019,-153.0,0.00019946,2]
[367296901,1750734647029,-153.0,0.00019946,2]
[367296903,1750734647041,-782.0,0.00019961,3]
[367296905,1750734647050,-785.0,0.00019961,3]
[367296907,1750734647059,-782.0,0.00019961,3]
[367296909,1750734647068,-782.0,0.00019961,3]
[367296911,1750734647077,-782.0,0.00019961,3]
[367296913,1750734647087,-213.66798275,0.00019961,3]
[367296915,1750734647097,-20694.99523684,0.0001999,2]
[367296917,1750734647106,-188.365935,0.0001999,2]
[367296919,1750734647115,-188.365935,0.0001999,2]
[367296921,1750734647125,-194.1828,0.0001999,2]
[367296923,1750734647134,-194.1828,0.0001999,2]
[367296925,1750734647144,-151.0,0.0001999,2]
[367296927,1750734647153,-151.0,0.0001999,2]
[367296929,1750734647163,-151.0,0.0001999,2]
[367296931,1750734647174,-151.0,0.0001999,2]
[367296933,1750734647183,-152.835461,0.0001999,2]
[367296935,1750734647192,-231.263963,0.0001999,2]
[367296937,1750734647201,-152.835461,0.0001999,2]
[367296939,1750734647211,-231.263963,0.0001999,2]
[367296941,1750734647220,-151.0,0.0001999,2]
[367296943,1750734647229,-1023.00136,0.0001999,2]
[367296945,1750734647239,-1023.00136,0.0001999,2]
[367296947,1750734647248,-151.0,0.0001999,2]
[367296949,1750734647257,-9613.15686966,0.0002,20]
[367296951,1750734647266,-7612.35913927,0.0002,7]
[367296953,1750734647275,-1000.0,0.0002,6]
[367296955,1750734647284,-151.0,0.0002,2]
[367296957,1750734647293,-151.0,0.0002,2]
[367296959,1750734647303,-165.96254006,0.00020002,2]
[367296961,1750734647312,-460.0,0.00020007,2]
[367296963,1750734647321,-158.81,0.00020007,2]
[367296965,1750734647330,-317.76218466,0.00020007,2]
[367296967,1750734647339,-594.33110602,0.00020007,2]
[367296969,1750734647349,-2155.91,0.00020007,2]
[367296971,1750734647358,-460.0,0.00020007,2]
[367296973,1750734647367,-460.0,0.00020007,2]
[367296975,1750734647376,-460.0,0.00020007,2]
[367296976,1750734647384,-460.0,0.00020008,2]
[367296978,1750734647394,-307.77,0.00020008,2]
[367296980,1750734647403,-345.9,0.00020008,2]
[367296982,1750734647413,-2146.74,0.00020008,2]
[367296983,1750734647422,-2602.89,0.00020008,2]
[367296984,1750734647432,-939.11,0.00020008,2]
[367296985,1750734647441,-311.60833713,0.00020008,2]
[367296986,1750734647450,-465.78,0.00020008,2]
[367296987,1750734647459,-2021.02,0.00020008,2]
[367296988,1750734647468,-1914.93,0.00020008,2]
[367296989,1750734647478,-3353.21,0.00020008,2]
[367296990,1750734647488,-460.0,0.00020008,2]
[367296991,1750734647497,-1381.75,0.00020008,2]
[367296992,1750734647506,-184.67,0.00020008,2]
[367296993,1750734647516,-737.82,0.00020008,2]
[367296994,1750734647526,-1173.71,0.00020008,2]
[367296995,1750734647535,-915.86,0.00020008,2]
[367296996,1750734647544,-1736.56,0.00020008,2]
[367296997,1750734647553,-672.1,0.00020008,2]
[367296998,1750734647563,-900.79,0.00020008,2]
[367296999,1750734647572,-656.29,0.00020008,2]
[367297000,1750734647581,-202.12,0.00020018,2]
[367297001,1750734647590,-574.91,0.00020018,2]
[367297002,1750734647601,-460.0,0.00020018,2]
[367297003,1750734647610,-151.0,0.00020018,2]
[367297004,1750734647619,-801.98,0.00020018,2]
[367297005,1750734647629,-460.0,0.00020018,2]
[367297006,1750734647638,-336.915745,0.00020018,2]
[367297007,1750734647648,-336.915745,0.00020018,2]
[367297008,1750734647657,-226.819998,0.00020018,2]
[367297009,1750734647666,-226.819998,0.00020018,2]
[367297010,1750734647675,-460.0,0.00020018,2]
[367297011,1750734647684,-294.752646,0.00020018,2]
[367297012,1750734647694,-460.0,0.00020018,2]
[367297013,1750734647703,-294.752646,0.00020018,2]
[367297014,1750734647712,-1199.09,0.00020018,2]
[367297016,1750734647722,-151.0,0.00020018,2]
[367297018,1750734647732,-765.11,0.00020018,2]
[367297020,1750734647741,-829.72,0.00020018,2]
[367297022,1750734647750,-460.0,0.00020018,2]
[367297024,1750734647759,-1200.67,0.00020018,2]
[367297026,1750734647768,-460.0,0.00020018,2]
[367297028,1750734647778,-374.79969473,0.00020019,2]
[367297030,1750734647787,-460.0,0.00020019,2]
[367297032,1750734647796,-160.0,0.00020019,2]
[367297034,1750734647806,-151.0,0.00020019,2]
[367297036,1750734647815,-151.0,0.00020019,2]
[367297038,1750734647824,-460.0,0.00020019,2]
[367297040,1750734647833,-151.0,0.00020019,2]
[367297042,1750734647842,-151.0,0.00020019,2]
[367297044,1750734647853,-151.0,0.00020019,2]
[367297046,1750734647862,-460.0,0.00020019,2]
[367297048,1750734647872,-319.828549,0.00020019,2]
[367297050,1750734647883,-319.828549,0.00020019,2]
[367297052,1750734647892,-460.0,0.00020019,2]
[367297054,1750734647900,-151.0,0.00020019,2]
[367297056,1750734647911,-1943.37879,0.00020019,2]
[367297058,1750734647920,-151.0,0.00020019,2]
[367297060,1750734647929,-153.855787,0.00020019,2]
[367297062,1750734647938,-625.0,0.00020019,2]
[367297064,1750734647947,-460.0,0.00020019,2]
[367297066,1750734647957,-460.0,0.00020019,2]
[367297068,1750734647966,-460.0,0.00020019,2]
[367297070,1750734647976,-460.0,0.00020019,2]
[367297072,1750734647985,-551.04,0.00020019,2]
[367297074,1750734647994,-460.0,0.00020019,2]
[367297075,1750734648005,-478.18488,0.00020019,2]
[367297077,1750734648014,-478.18488,0.00020019,2]
[367297079,1750734648023,-811.65,0.00020019,2]
[367297081,1750734648033,-460.0,0.00020019,2]
[367297083,1750734648042,-6180.17,0.00020019,2]
[367297085,1750734648052,-958.69,0.00020019,2]
[367297087,1750734648061,-889.41,0.00020019,2]
[367297089,1750734648071,-460.0,0.00020019,2]
[367297091,1750734648080,-1041.7,0.00020019,2]
[367297093,1750734648091,-890.43,0.00020019,2]
[367297095,1750734648101,-245.33,0.00020019,2]
[367297097,1750734648111,-460.0,0.00020019,2]
[367297099,1750734648121,-802.31,0.00020019,2]
[367297104,1750734648215,-460.0,0.00020019,2]
[367297105,1750734648235,-2374.63,0.00020019,2]
[367297106,1750734648245,-460.0,0.00020019,2]
[367297107,1750734648256,-830.91,0.00020019,2]
[367297108,1750734648266,-662.2,0.00020019,2]
[367297109,1750734648276,-255.51,0.00020019,2]
[367297110,1750734648286,-540.98323226,0.00020019,2]
[367297111,1750734648296,-460.0,0.00020019,2]
[367297112,1750734648305,-712.19,0.00020019,2]
[367297113,1750734648315,-460.0,0.00020019,2]
[367297114,1750734648325,-460.0,0.00020019,2]
[367297115,1750734648336,-460.0,0.0002002,2]
[367297116,1750734648346,-460.0,0.0002002,2]
[367297118,1750734648356,-460.0,0.0002002,2]
[367297120,1750734648367,-151.0,0.0002002,2]
[367297122,1750734648377,-301.243142,0.0002002,2]
[367297124,1750734648386,-151.0,0.0002002,2]
[367297126,1750734648396,-151.0,0.0002002,2]
[367297128,1750734648405,-460.0,0.0002002,2]
[367297130,1750734648415,-460.0,0.0002002,2]
[367297132,1750734648425,-636.229513,0.0002002,2]
[367297133,1750734648435,-460.0,0.0002002,2]
[367297134,1750734648446,-636.229513,0.0002002,2]
[367297135,1750734648457,-723.65,0.0002002,2]
[367297136,1750734648467,-460.0,0.0002002,2]
[367297137,1750734648477,-151.0,0.0002002,2]
[367297138,1750734648487,-460.0,0.0002002,2]
[367297139,1750734648498,-204.003028,0.0002002,2]
[367297140,1750734648508,-204.003028,0.0002002,2]
[367297141,1750734648519,-460.0,0.0002002,2]
[367297142,1750734648529,-151.0,0.0002002,2]
[367297143,1750734648538,-151.0,0.0002002,2]
[367297144,1750734648549,-460.0,0.0002002,2]
[367297145,1750734648559,-151.0,0.0002002,2]
[367297146,1750734648570,-151.0,0.0002002,2]
[367297147,1750734648580,-811.96,0.0002002,2]
[367297148,1750734648590,-460.0,0.0002002,2]
[367297149,1750734648599,-1198.060485,0.0002002,2]
[367297150,1750734648608,-1198.060485,0.0002002,2]
[367297151,1750734648618,-611.688295,0.0002002,2]
[367297152,1750734648629,-611.688295,0.0002002,2]
[367297153,1750734648639,-460.0,0.0002002,2]
[367297154,1750734648649,-151.703439,0.0002002,2]
[367297155,1750734648659,-202.4801576,0.0002002,2]
[367297156,1750734648668,-2658.65,0.0002002,2]
[367297157,1750734648678,-460.0,0.0002002,2]
[367297158,1750734648687,-460.0,0.0002002,2]
[367297159,1750734648697,-623.14,0.0002002,2]
[367297160,1750734648706,-2482.28,0.0002002,2]
[367297161,1750734648716,-3926.03,0.0002002,2]
[367297162,1750734648726,-152.835461,0.0002002,2]
[367297163,1750734648735,-231.263963,0.0002002,2]
[367297164,1750734648746,-152.835461,0.0002002,2]
[367297165,1750734648756,-231.263963,0.0002002,2]
[367297166,1750734648766,-2433.37,0.0002002,2]
[367297167,1750734648776,-460.0,0.0002002,2]
[367297168,1750734648785,-411.00447398,0.0002002,2]
[367297169,1750734648795,-460.0,0.0002002,2]
[367297170,1750734648804,-460.0,0.0002002,2]
[367297171,1750734648814,-151.0,0.0002002,2]
[367297172,1750734648823,-1500.4,0.0002002,2]
[367297173,1750734648833,-460.0,0.0002002,2]
[367297174,1750734648843,-528.97357387,0.0002002,2]
[367297175,1750734648853,-1023.00136,0.0002002,2]
[367297176,1750734648862,-1023.00136,0.0002002,2]
[367297177,1750734648872,-460.0,0.0002002,2]
[367297178,1750734648881,-151.0,0.0002002,2]
[367297179,1750734648891,-460.0,0.0002002,2]
[367297180,1750734648901,-1500.0,0.00020021,7]
[367297181,1750734648910,-1500.0,0.00020021,7]
[367297182,1750734648919,-1500.0,0.00020021,7]
[367297183,1750734648928,-1500.0,0.00020021,7]
[367297184,1750734648937,-1500.0,0.00020021,7]
[367297185,1750734648947,-1500.0,0.00020021,7]
[367297186,1750734648957,-1500.0,0.00020021,7]
[367297187,1750734648966,-1500.0,0.00020021,7]
[367297188,1750734648979,-1500.0,0.00020021,7]
[367297189,1750734648988,-1500.0,0.00020021,7]
[367297190,1750734648999,-1500.0,0.00020021,7]
[367297191,1750734649009,-1500.0,0.00020021,7]
[367297192,1750734649019,-1500.0,0.00020021,7]
[367297193,1750734649030,-1500.0,0.00020021,7]
[367297194,1750734649041,-1500.0,0.00020021,7]
[367297195,1750734649052,-1500.0,0.00020021,7]
[367297196,1750734649063,-1500.0,0.00020021,7]
[367297197,1750734649073,-1500.0,0.00020021,7]
[367297198,1750734649084,-1500.0,0.00020021,7]
[367297199,1750734649093,-1500.0,0.00020021,7]
[367297200,1750734649105,-1500.0,0.00020021,7]
[367297201,1750734649115,-1500.0,0.00020021,7]
[367297202,1750734649126,-1500.0,0.00020021,7]
[367297203,1750734649136,-1500.0,0.00020021,7]
[367297204,1750734649145,-1500.0,0.00020021,7]
[367297205,1750734649155,-1500.0,0.00020021,7]
[367297206,1750734649164,-1500.0,0.00020021,7]
[367297207,1750734649174,-1500.0,0.00020021,7]
[367297208,1750734649183,-1500.0,0.00020021,7]
[367297209,1750734649192,-1500.0,0.00020021,7]
[367297210,1750734649202,-1500.0,0.00020021,7]
[367297211,1750734649211,-1500.0,0.00020021,7]
[367297212,1750734649221,-1500.0,0.00020021,7]
[367297213,1750734649230,-1500.0,0.00020021,7]
[367297214,1750734649240,-1500.0,0.00020021,7]
[367297215,1750734649249,-1500.0,0.00020021,7]
[367297216,1750734649258,-1500.0,0.00020021,7]
[367297217,1750734649268,-1500.0,0.00020021,7]
[367297218,1750734649277,-1500.0,0.00020021,7]
[367297219,1750734649287,-1500.0,0.00020021,7]
[367297220,1750734649297,-1500.0,0.00020021,7]
[367297221,1750734649307,-1500.0,0.00020021,7]
[367297222,1750734649316,-1500.0,0.00020021,7]
[367297223,1750734649326,-1500.0,0.00020021,7]
[367297224,1750734649336,-1500.0,0.00020021,7]
[367297225,1750734649347,-1500.0,0.00020021,7]
[367297226,1750734649356,-1500.0,0.00020021,7]
[367297227,1750734649365,-1500.0,0.00020021,7]
[367297228,1750734649374,-1500.0,0.00020021,7]
[367297229,1750734649383,-1500.0,0.00020021,7]
[367297230,1750734649392,-1500.0,0.00020021,7]
[367297231,1750734649401,-1500.0,0.00020021,7]
[367297232,1750734649409,-1500.0,0.00020021,7]
[367297233,1750734649418,-1500.0,0.00020021,7]
[367297234,1750734649427,-1500.0,0.00020021,7]
[367297235,1750734649436,-1500.0,0.00020021,7]
[367297236,1750734649445,-1500.0,0.00020021,7]
[367297237,1750734649454,-1500.0,0.00020021,7]
[367297238,1750734649462,-1500.0,0.00020021,7]
[367297239,1750734649471,-1500.0,0.00020021,7]
[367297240,1750734649480,-1500.0,0.00020021,7]
[367297241,1750734649489,-1500.0,0.00020021,7]
[367297242,1750734649498,-1500.0,0.00020021,7]
[367297243,1750734649506,-1500.0,0.00020021,7]
[367297244,1750734649516,-1500.0,0.00020021,7]
[367297245,1750734649525,-1500.0,0.00020021,7]
[367297246,1750734649535,-1500.0,0.00020021,7]
[367297247,1750734649546,-1500.0,0.00020021,7]
[367297248,1750734649555,-1500.0,0.00020021,7]
[367297249,1750734649565,-1500.0,0.00020021,7]
[367297250,1750734649574,-1500.0,0.00020021,7]
[367297251,1750734649583,-1500.0,0.00020021,7]
[367297252,1750734649593,-1500.0,0.00020021,7]
[367297253,1750734649603,-1500.0,0.00020021,7]
[367297254,1750734649612,-1500.0,0.00020021,7]
[367297255,1750734649621,-1500.0,0.00020021,7]
[367297256,1750734649631,-1500.0,0.00020021,7]
[367297257,1750734649640,-1500.0,0.00020021,7]
[367297258,1750734649650,-1500.0,0.00020021,7]
[367297259,1750734649659,-1500.0,0.00020021,7]
[367297260,1750734649669,-1500.0,0.00020021,7]
[367297261,1750734649678,-1500.0,0.00020021,7]
[367297262,1750734649687,-1500.0,0.00020021,7]
[367297263,1750734649696,-1500.0,0.00020021,7]
[367297264,1750734649705,-1500.0,0.00020021,7]
[367297265,1750734649715,-1500.0,0.00020021,7]
[367297266,1750734649724,-1500.0,0.00020021,7]
[367297267,1750734649733,-1500.0,0.00020021,7]
[367297268,1750734649742,-1500.0,0.00020021,7]
[367297269,1750734649752,-1500.0,0.00020021,7]
[367297270,1750734649761,-1500.0,0.00020021,7]
[367297271,1750734649770,-1500.0,0.00020021,7]
[367297272,1750734649779,-1500.0,0.00020021,7]
[367297273,1750734649789,-1500.0,0.00020021,7]
[367297274,1750734649799,-1500.0,0.00020021,7]
[367297275,1750734649808,-1500.0,0.00020021,7]
[367297276,1750734649818,-1500.0,0.00020021,7]
[367297277,1750734649827,-1500.0,0.00020021,7]
[367297278,1750734649836,-1500.0,0.00020021,7]
[367297279,1750734649846,-1500.0,0.00020021,7]
[367297280,1750734649855,-151.0,0.00020021,2]
[367297281,1750734649865,-151.0,0.00020021,2]
[367297282,1750734649874,-151.0,0.00020021,2]
[367297283,1750734649884,-151.0,0.00020021,2]
[367297284,1750734649894,-543.938955,0.00020021,2]
[367297285,1750734649903,-543.938955,0.00020021,2]
[367297286,1750734649914,-151.0,0.00020021,2]
[367297287,1750734649923,-204.003028,0.00020021,2]
[367297288,1750734649933,-204.003028,0.00020021,2]
[367297289,1750734649943,-1943.37879,0.00020021,2]
[367297290,1750734649953,-1943.37879,0.00020021,2]
[367297291,1750734649966,-151.0,0.00020021,2]
[367297292,1750734649975,-151.0,0.00020021,2]
[367297293,1750734649986,-260.866422,0.00020021,2]
[367297294,1750734649995,-151.0,0.00020021,2]
[367297295,1750734650097,-151.0,0.00020021,2]
[367297296,1750734650107,-1198.060485,0.00020021,2]
[367297297,1750734650117,-1198.060485,0.00020021,2]
[367297298,1750734650126,-611.688295,0.00020021,2]
[367297299,1750734650136,-611.688295,0.00020021,2]
[367297300,1750734650146,-160.0,0.00020021,7]
[367297301,1750734650156,-846.68469334,0.00020021,7]
[367297302,1750734650166,-151.0,0.00020021,2]
[367297303,1750734650176,-151.0,0.00020021,2]
[367297304,1750734650187,-160.0,0.00020021,7]
[367297305,1750734650196,-336.915745,0.00020021,2]
[367297306,1750734650206,-336.915745,0.00020021,2]
[367297307,1750734650215,-336.915745,0.00020021,2]
[367297308,1750734650224,-336.915745,0.00020021,2]
[367297309,1750734650234,-478.18488,0.00020021,2]
[367297310,1750734650243,-478.18488,0.00020021,2]
[367297311,1750734650252,-478.18488,0.00020021,2]
[367297312,1750734650263,-478.18488,0.00020021,2]
[367297313,1750734650272,-226.819998,0.00020021,2]
[367297314,1750734650282,-226.819998,0.00020021,2]
[367297315,1750734650292,-226.819998,0.00020021,2]
[367297316,1750734650301,-226.819998,0.00020021,2]
[367297317,1750734650312,-294.752646,0.00020021,2]
[367297318,1750734650321,-294.752646,0.00020021,2]
[367297319,1750734650330,-294.752646,0.00020021,2]
[367297320,1750734650340,-294.752646,0.00020021,2]
[367297321,1750734650350,-12556.00642039,0.00020021,7]
[367297322,1750734650359,-151.0,0.00020021,2]
[367297323,1750734650368,-151.0,0.00020021,2]
[367297324,1750734650377,-152.835461,0.00020021,2]
[367297325,1750734650386,-152.835461,0.00020021,2]
[367297326,1750734650396,-231.263963,0.00020021,2]
[367297327,1750734650405,-231.263963,0.00020021,2]
[367297328,1750734650415,-152.835461,0.00020021,2]
[367297329,1750734650424,-152.835461,0.00020021,2]
[367297330,1750734650433,-231.263963,0.00020021,2]
[367297331,1750734650443,-231.263963,0.00020021,2]
[367297332,1750734650451,-189.34446,0.00020021,2]
[367297333,1750734650461,-1023.00136,0.00020021,2]
[367297334,1750734650470,-1023.00136,0.00020021,2]
[367297335,1750734650480,-1023.00136,0.00020021,2]
[367297336,1750734650491,-1023.00136,0.00020021,2]
[367297337,1750734650500,-213.66798275,0.00020021,7]
[367297338,1750734650510,-151.0,0.00020021,2]
[367297339,1750734650519,-151.0,0.00020021,2]
[367297340,1750734650528,-615.54,0.00020049,2]
[367297341,1750734650537,-460.0,0.00020049,2]
[367297342,1750734650546,-607.2297974,0.00020049,2]
[367297343,1750734650555,-377.56,0.00020049,2]
[367297344,1750734650565,-460.0,0.00020049,2]
[367297345,1750734650574,-460.0,0.00020049,2]
[367297346,1750734650583,-460.0,0.00020049,2]
[367297347,1750734650592,-151.0,0.00020049,2]
[367297348,1750734650603,-151.0,0.00020049,2]
[367297349,1750734650613,-151.0,0.00020049,2]
[367297350,1750734650624,-151.0,0.00020049,2]
[367297351,1750734650633,-611.688295,0.00020049,2]
[367297352,1750734650643,-611.688295,0.00020049,2]
[367297353,1750734650652,-151.477412,0.00020058,2]
[367297354,1750734650661,-460.0,0.00020058,2]
[367297355,1750734650671,-243.668798,0.00020058,2]
[367297356,1750734650680,-151.0,0.00020058,2]
[367297357,1750734650690,-151.0,0.00020058,2]
[367297358,1750734650699,-151.0,0.00020058,2]
[367297359,1750734650708,-311.341494,0.00020058,2]
[367297360,1750734650719,-1317.68,0.00020058,2]
[367297361,1750734650728,-311.341494,0.00020058,2]
[367297362,1750734650738,-460.0,0.00020058,2]
[367297363,1750734650747,-460.0,0.00020058,2]
[367297364,1750734650757,-460.0,0.00020058,2]
[367297365,1750734650766,-204.003028,0.00020058,2]
[367297366,1750734650775,-204.003028,0.00020058,2]
[367297367,1750734650784,-460.0,0.00020058,2]
[367297368,1750734650794,-1198.060485,0.00020058,2]
[367297369,1750734650804,-1198.060485,0.00020058,2]
[367297370,1750734650815,-188.365935,0.00020061,2]
[367297371,1750734650826,-188.365935,0.00020061,2]
[367297372,1750734650835,-194.1828,0.00020061,2]
[367297373,1750734650844,-194.1828,0.00020061,2]
[367297374,1750734650854,-151.0,0.00020061,2]
[367297375,1750734650863,-151.0,0.00020061,2]
[367297376,1750734650872,-151.0,0.00020061,2]
[367297377,1750734650881,-151.0,0.00020071,2]
[367297378,1750734650891,-151.0,0.00020071,2]
[367297379,1750734650901,-267.581977,0.00020071,2]
[367297380,1750734650911,-151.0,0.00020071,2]
[367297381,1750734650920,-543.938955,0.00020071,2]
[367297382,1750734650929,-543.938955,0.00020071,2]
[367297383,1750734650939,-319.828549,0.00020071,2]
[367297384,1750734650948,-319.828549,0.00020071,2]
[367297385,1750734650957,-151.0,0.00020071,2]
[367297386,1750734650966,-151.0,0.00020071,2]
[367297387,1750734650978,-500.0,0.00020073,2]
[367297388,1750734650987,-500.0,0.00020073,2]
[367297389,1750734650997,-500.0,0.00020073,2]
[367297390,1750734651007,-627.1042849,0.00020073,2]
[367297391,1750734651016,-500.0,0.00020073,2]
[367297392,1750734651027,-500.0,0.00020073,2]
[367297393,1750734651037,-500.0,0.00020073,2]
[367297394,1750734651048,-151.0,0.00020073,2]
[367297395,1750734651058,-211.576795,0.00020073,2]
[367297396,1750734651068,-151.0,0.00020073,2]
[367297397,1750734651078,-151.0,0.00020073,2]
[367297398,1750734651088,-1858.98038746,0.00020076,2]
[367297399,1750734651097,-151.0,0.000201,4]
[367297400,1750734651109,-151.0,0.000201,4]
[367297401,1750734651120,-151.0,0.000201,4]
[367297402,1750734651130,-160.0,0.00020126,10]
[367297403,1750734651140,-168.77589566,0.0002017,2]
[367297404,1750734651149,-372.327637,0.00020187,2]
[367297405,1750734651159,-151.0,0.000202,4]
[367297406,1750734651170,-151.0,0.000202,3]
[367297407,1750734651179,-151.0,0.000202,4]
[367297408,1750734651188,-514065.50752041,0.00020268,2]
[367297409,1750734651363,-445.44633392,0.00020268,2]
[367297414,1750734804312,300.0,0.00024,30]
[367297415,1750734839119,165.96254006,0.00019096,2]
[367297416,1750734940693,168.0,0.00018926,2]
[367297417,1750735044333,165.96254006,0.00019085,2]
[367297418,1750735050454,344.938586,0.00013699,2]
[367297420,1750735240011,165.96254006,0.00019084,2]
[367297421,1750735425205,165.96254006,0.00019083,2]
[367297423,1750735595555,165.96254006,0.00019073,2]
[367297424,1750735643081,-1384.63246642,0.00019163,2]
[367297425,1750735643102,-174.28,0.00019163,2]
[367297426,1750735643121,-297.12303386,0.0001917,2]
[367297427,1750735717996,682.02426352,0.0002616,120]
[367297436,1750735772123,-490.0,0.0001917,2]
[367297481,1750735837298,-4212.87696614,0.0001917,2]
[367297483,1750735837308,-300.0,0.00019171,2]
[367297486,1750735837317,-1200.0,0.00019171,2]
[367297488,1750735837328,-300.0,0.00019172,2]
[367297490,1750735837337,-500.0,0.00019172,2]
[367297493,1750735837346,-500.0,0.00019172,2]
[367297496,1750735837355,-500.0,0.00019172,2]
[367297499,1750735837364,-500.0,0.00019172,2]
[367297501,1750735837372,-500.0,0.00019172,2]
[367297504,1750735837381,-500.0,0.00019172,2]
[367297507,1750735837390,-500.0,0.00019172,2]
[367297509,1750735837399,-500.0,0.00019172,2]
[367297512,1750735837409,-500.0,0.00019172,2]
[367297514,1750735837418,-500.0,0.00019172,2]
[367297516,1750735837427,-541.39705473,0.00019172,2]
[367297518,1750735837436,-500.0,0.00019172,2]
[367297521,1750735837450,-500.0,0.00019172,2]
[367297523,1750735837460,-500.0,0.00019172,2]
[367297525,1750735837469,-178.97793831,0.00019172,2]
[367297527,1750735837479,-500.0,0.00019172,2]
[367297529,1750735837489,-207.4,0.00019172,2]
[367297531,1750735837498,-1688.0,0.00019172,2]
[367297533,1750735837507,-14535.74019612,0.00019173,2]
[367297535,1750735837518,-500.0,0.00019173,2]
[367297537,1750735837527,-500.0,0.00019173,2]
[367297539,1750735837537,-500.0,0.00019173,2]
[367297541,1750735837546,-500.0,0.00019173,2]
[367297543,1750735837555,-500.0,0.00019173,2]
[367297545,1750735837564,-500.0,0.00019173,2]
[367297547,1750735837574,-500.0,0.00019173,2]
[367297549,1750735837583,-500.0,0.00019173,2]
[367297551,1750735837593,-500.0,0.00019173,2]
[367297553,1750735837602,-500.0,0.00019173,2]
[367297555,1750735837611,-500.0,0.00019173,2]
[367297557,1750735837621,-500.0,0.00019173,2]
[367297559,1750735837630,-500.0,0.00019173,2]
[367297561,1750735837640,-5000.0,0.00019173,2]
[367297563,1750735837648,-500.0,0.00019173,2]
[367297565,1750735837658,-500.0,0.00019173,2]
[367297567,1750735837667,-500.0,0.00019173,2]
[367297569,1750735837676,-500.0,0.00019173,2]
[367297571,1750735837685,-500.0,0.00019173,2]
[367297573,1750735837694,-360.77032562,0.00019178,2]
[367297575,1750735837703,-500.0,0.00019178,2]
[367297577,1750735837713,-585.34401517,0.00019178,2]
[367297579,1750735837723,-470.95122266,0.00019178,2]
[367297581,1750735837732,-460.0,0.00019178,2]
[367297583,1750735837742,-1834.92,0.00019178,2]
[367297585,1750735837750,-460.0,0.00019178,2]
[367297587,1750735837760,-1827.28,0.00019178,2]
[367297589,1750735837769,-460.0,0.00019178,2]
[367297591,1750735837778,-196.190914,0.00019178,2]
[367297593,1750735837787,-460.0,0.00019182,2]
[367297595,1750735837796,-460.0,0.00019182,2]
[367297598,1750735837805,-2273.03,0.00019182,2]
[367297599,1750735837815,-820.93,0.00019182,2]
[367297601,1750735837824,-460.0,0.00019182,2]